bitfinex/quotes_SOLUSD_20220113
["timestamp","ask_amount","ask_price","bid_price","bid_amount"]
[1642076128604,10.1571,151.44,151.37,2.641]
[1642076129007,10.1571,151.44,151.36,74.9589]
[1642076129402,10.1571,151.44,151.36,2.641]
[1642076129903,0.07,151.43,151.36,2.641]
[1642076130202,0.07,151.43,151.34,1.81315507]
[1642076130203,9.911,151.39,151.34,1.81315507]
[1642076130603,10.161,151.39,151.32,4.45515507]
[1642076131704,10.161,151.39,151.32,14.36625507]
[1642076131903,10.161,151.39,151.32,12.5531]
[1642076132708,10.161,151.39,151.32,2.642]
[1642076133006,12.803,151.39,151.32,2.642]
[1642076133408,20.007,151.39,151.32,2.642]
[1642076133608,20.007,151.39,151.29,1.81315507]
[1642076133809,42.7548,151.39,151.29,1.81315507]
[1642076134608,42.7548,151.39,151.29,11.72615507]
[1642076135209,9.9132,151.35,151.29,11.72615507]
[1642076135408,9.9132,151.35,151.28,2.642]
[1642076135609,66.37,151.34,151.27,1.81315507]
[1642076136009,66.62,151.34,151.27,1.81315507]
[1642076136209,0.25,151.34,151.27,1.81315507]
[1642076136412,9.9148,151.32,151.27,1.81315507]
[1642076136609,10.1648,151.32,151.27,1.81315507]
[1642076136810,10.1648,151.32,151.26,9.9146]
[1642076138712,10.1648,151.32,151.25,12.5577]
[1642076139312,10.1648,151.32,151.25,9.9157]
[1642076140214,10.1648,151.32,151.24,12.5603]
[1642076144315,9.5,151.31,151.24,12.5603]
[1642076144514,10.166,151.31,151.24,12.5603]
[1642076144913,10.166,151.31,151.24,9.9163]
[1642076150052,0.25,151.31,151.24,9.9163]
[1642076150452,19.6651,151.32,151.24,9.9163]
[1642076152757,22.3091,151.32,151.24,9.9163]
[1642076154160,22.3791,151.32,151.23,37.3986]
[1642076154358,30.6271,151.32,151.23,34.7546]
[1642076155460,24.2448,151.31,151.23,34.7546]
[1642076155657,22.0608,151.3,151.23,34.7546]
[1642076156059,22.3108,151.3,151.23,34.7546]
[1642076160864,22.3108,151.3,151.23,36.56775507]
[1642076164275,22.3108,151.3,151.24,1.81315507]
[1642076165176,22.3108,151.3,151.23,36.56775507]
[1642076165776,22.3808,151.3,151.23,36.56775507]
[1642076165976,66.37,151.29,151.24,1.81315507]
[1642076166178,9.919,151.27,151.24,1.81315507]
[1642076166476,19.669,151.27,151.24,1.81315507]
[1642076166676,66.37,151.26,151.24,1.81315507]
[1642076166879,69.014,151.26,151.24,1.81315507]
[1642076167076,9.5,151.25,151.22,1.81315507]
[1642076167308,66.37,151.24,151.22,1.81315507]
[1642076167510,0.25,151.24,151.22,1.81315507]
[1642076168008,66.62,151.24,151.19,4.45715507]
[1642076168208,69.265,151.24,151.19,1.81315507]
[1642076168408,78.765,151.24,151.19,1.81315507]
[1642076168807,78.68912014,151.24,151.19,1.81315507]
[1642076169209,9.9213,151.23,151.18,1.81315507]
[1642076170309,9.9213,151.23,151.17,1.81315507]
[1642076170512,10.1713,151.23,151.17,1.81315507]
[1642076171209,10.1713,151.23,151.16,11.25270276]
[1642076171615,66.37,151.22,151.16,11.25270276]
[1642076171813,9.9231,151.2,151.16,11.25270276]
[1642076172013,10.1731,151.2,151.16,11.25270276]
[1642076172213,15.4381,151.2,151.16,11.25270276]
[1642076172415,27.5831,151.2,151.16,9.43954769]
[1642076177520,27.5831,151.2,151.16,8.93954769]
[1642076179019,93.9531,151.2,151.16,8.43954769]
[1642076179220,9.9259,151.17,151.16,8.43954769]
[1642076179418,19.4259,151.17,151.16,8.43954769]
[1642076179619,19.6759,151.17,151.16,8.43954769]
[1642076183023,19.6759,151.17,151.16,7.43954769]
[1642076183224,19.6759,151.17,151.16,1.03954769]
[1642076183428,19.6759,151.17,151.09,1.81315507]
[1642076183624,0.07,151.15,151.09,1.81315507]
[1642076183825,9.9293,151.12,151.09,1.81315507]
[1642076184124,18.2533,151.12,151.09,1.81315507]
[1642076184325,18.2533,151.12,151.07,1.81315507]
[1642076185627,18.2533,151.12,151.06,22.7169]
[1642076185829,18.2533,151.12,151.05,4.45915507]
[1642076186056,19.97329521,151.12,151.05,1.81315507]
[1642076186328,12.146,151.11,151.05,1.81315507]
[1642076186528,9.9328,151.08,151.05,1.81315507]
[1642076186727,15.1368,151.08,151.05,1.81315507]
[1642076186930,15.3868,151.08,151.05,1.81315507]
[1642076187129,81.7568,151.08,151.03,1.81315507]
[1642076187329,84.4048,151.08,151.03,1.81315507]
[1642076187928,84.4748,151.08,151.03,1.81315507]
[1642076188732,84.4748,151.08,151.02,2.646]
[1642076188930,84.4748,151.08,151.0,73.7311]
[1642076189131,84.4748,151.08,150.99,24.1456]
[1642076189731,75.87,151.07,150.98,11.74655507]
[1642076189934,9.934,151.03,150.98,1.81315507]
[1642076190134,9.934,151.03,150.97,77.19215507]
[1642076190337,10.184,151.03,150.97,77.19215507]
[1642076191036,10.184,151.03,150.98,0.02]
[1642076193038,9.934,151.03,150.98,0.02]
[1642076193242,9.5,151.08,150.98,9.9533]
[1642076193639,26.9594,151.12,150.98,11.52719755]
[1642076193840,9.5,151.11,151.0,30.65168852]
[1642076194040,9.5,151.11,151.0,30.90168852]
[1642076194641,9.75,151.11,151.0,30.90168852]
[1642076195041,9.75,151.11,151.0,30.65168852]
[1642076195241,12.5779,151.1,151.03,9.93]
[1642076195444,9.5,151.09,151.03,9.93]
[1642076195842,9.75,151.09,151.01,25.9253]
[1642076196542,9.75,151.09,151.02,9.9307]
[1642076196842,0.25,151.09,151.02,9.9307]
[1642076197044,35.0351,151.1,151.02,9.9307]
[1642076197242,9.5,151.09,151.02,9.9307]
[1642076197642,9.75,151.09,151.02,9.9307]
[1642076198045,66.37,151.08,151.01,25.9253]
[1642076198442,9.5,151.07,151.01,25.9253]
[1642076198641,9.5,151.07,151.01,23.2773]
[1642076198845,9.75,151.07,151.01,23.2773]
[1642076199243,0.25,151.07,151.01,33.2087]
[1642076199442,2.648,151.08,151.01,33.2087]
[1642076199742,9.5,151.09,151.02,2.648]
[1642076201078,9.5,151.09,151.04,9.9294]
[1642076201281,12.148,151.13,151.04,9.9294]
[1642076201490,22.8733,151.15,151.06,25.96713103]
[1642076201679,22.8733,151.15,151.07,2.646]
[1642076202078,12.5709,151.18,151.1,9.9248]
[1642076202480,12.8209,151.18,151.1,9.9248]
[1642076202882,12.5709,151.18,151.1,9.9248]
[1642076203184,12.6409,151.18,151.1,9.9248]
[1642076203881,2.716,151.18,151.1,9.9248]
[1642076204281,0.716,151.18,151.1,9.9248]
[1642076206283,10.6405,151.18,151.1,9.9248]
[1642076206482,10.8905,151.18,151.1,9.9248]
[1642076206883,10.8905,151.18,151.09,34.4641]
[1642076207083,10.8905,151.18,151.09,24.538]
[1642076207286,9.9271,151.14,151.09,24.538]
[1642076207485,10.1771,151.14,151.07,76.1002]
[1642076207686,88.6931,151.14,151.07,2.646]
[1642076208285,0.07,151.12,151.07,2.646]
[1642076208887,12.396,151.14,151.07,2.646]
[1642076209087,12.466,151.14,151.07,2.646]
[1642076209688,9.9283,151.13,151.07,2.646]
[1642076209892,12.216,151.12,151.07,2.646]
[1642076210093,12.466,151.12,151.07,2.646]
[1642076211391,9.9292,151.11,151.07,2.666]
[1642076211593,2.716,151.1,151.07,2.666]
[1642076211991,2.966,151.1,151.07,2.666]
[1642076212191,0.32,151.1,151.07,2.666]
[1642076212991,0.07,151.1,151.07,2.666]
[1642076213391,0.07,151.1,151.07,0.02]
[1642076214592,9.9996,151.1,151.07,0.02]
[1642076214992,10.2496,151.1,151.07,0.02]
[1642076217094,27.9776,151.1,151.07,0.02]
[1642076217294,94.3476,151.1,151.07,0.02]
[1642076217496,10.003,151.08,151.07,0.02]
[1642076217694,19.503,151.08,151.07,0.02]
[1642076217894,19.753,151.08,151.07,0.02]
[1642076218297,22.4,151.08,151.07,0.02]
[1642076218497,19.683,151.08,151.07,0.02]
[1642076219198,22.329,151.08,151.07,0.02]
[1642076225008,19.683,151.08,151.07,0.02]
[1642076225209,10.183,151.08,151.07,0.02]
[1642076225411,13.8770435,151.09,151.07,0.02]
[1642076225709,1.3007435,151.09,151.08,6.06439993]
[1642076225909,1.3007435,151.09,151.07,0.02]
[1642076226810,1.5507435,151.09,151.07,0.02]
[1642076228540,2.646,151.08,151.07,0.02]
[1642076228943,2.896,151.08,151.07,0.02]
[1642076230144,2.966,151.08,151.07,0.02]
[1642076230342,0.07,151.08,151.07,3.05219996]
[1642076230542,0.07,151.08,151.07,6.08439993]
[1642076231243,0.07,151.08,151.07,16.01169993]
[1642076232647,0.07,151.08,151.07,6.08439993]
[1642076236349,0.07,151.08,151.07,16.01199993]
[1642076239052,0.07,151.08,151.07,6.08439993]
[1642076240454,0.07,151.08,151.07,0.02]
[1642076240651,0.07,151.08,151.07,6.08439993]
[1642076241053,0.07,151.08,151.07,3.05219997]
[1642076241253,0.07,151.08,151.07,0.02]
[1642076241254,2.716,151.08,151.07,0.02]
[1642076241452,12.8972,151.08,151.07,0.02]
[1642076244755,10.2512,151.08,151.07,0.02]
[1642076247456,10.2512,151.08,151.01,4.45915507]
[1642076247457,2.646,151.07,151.01,1.81315507]
[1642076247655,9.9367,151.04,151.01,1.81315507]
[1642076247860,9.9367,151.04,150.97,3.45184548]
[1642076247861,2.648,151.03,150.97,3.45184548]
[1642076248056,69.338,151.03,150.97,3.45184548]
[1642076248256,9.5,151.02,150.97,3.45184548]
[1642076248555,35.852,151.01,150.97,3.45184548]
[1642076248755,9.5,151.0,150.97,3.45184548]
[1642076248959,2.649,150.99,150.97,4.548e-05]
[1642076249156,9.9424,150.98,150.97,4.548e-05]
[1642076249356,9.9424,150.98,150.94,2.648]
[1642076249560,10.1924,150.98,150.94,2.648]
[1642076249757,2.649,150.97,150.94,2.648]
[1642076250058,9.9433,150.96,150.94,2.648]
[1642076250357,9.9433,150.96,150.94,5.68019997]
[1642076250557,10.1933,150.96,150.94,5.68019997]
[1642076250958,10.1933,150.96,150.94,2.648]
[1642076252759,12.8423,150.96,150.94,2.648]
[1642076253687,10.1933,150.96,150.94,2.648]
[1642076253888,10.1933,150.96,150.89,102.9317]
[1642076254088,10.1933,150.96,150.89,2.649]
[1642076255790,0.25,150.96,150.89,2.649]
[1642076255990,2.65,150.96,150.89,2.649]
[1642076256391,2.9,150.96,150.89,2.649]
[1642076256793,2.9,150.96,150.89,11.5941]
[1642076256992,0.25,150.96,150.89,11.5941]
[1642076257192,2.65,150.97,150.89,11.5941]
[1642076257396,2.65,150.98,150.89,2.649]
[1642076257597,2.719,150.99,150.89,2.649]
[1642076257794,12.219,150.99,150.89,2.649]
[1642076257996,9.9399,150.97,150.89,2.649]
[1642076258396,12.219,150.99,150.89,2.649]
[1642076258596,12.469,150.99,150.89,2.649]
[1642076259295,12.219,150.99,150.89,2.649]
[1642076259496,9.57,150.99,150.89,2.649]
[1642076260000,9.57,150.99,150.89,2.899]
[1642076260297,19.5089,150.99,150.89,11.854]
[1642076260498,19.5089,150.99,150.89,11.594]
[1642076260696,9.57,150.99,150.89,11.594]
[1642076260896,9.57,150.99,150.89,11.854]
[1642076261297,9.57,150.99,150.89,12.104]
[1642076261496,9.57,150.99,150.89,11.854]
[1642076263098,9.57,150.99,150.89,11.594]
[1642076263298,19.5085,150.99,150.89,11.594]
[1642076263497,19.7585,150.99,150.89,11.594]
[1642076263697,2.65,150.98,150.89,11.594]
[1642076264097,2.9,150.98,150.89,11.594]
[1642076264900,0.25,150.98,150.89,11.594]
[1642076265101,2.9,150.99,150.89,11.594]
[1642076266603,12.8386,150.99,150.89,11.594]
[1642076266804,10.1886,150.99,150.89,11.594]
[1642076267004,2.65,150.98,150.89,11.594]
[1642076267205,2.72,150.98,150.89,11.594]
[1642076267404,2.97,150.98,150.89,11.594]
[1642076267604,12.9093,150.98,150.89,2.649]
[1642076269508,79.2793,150.98,150.89,2.649]
[1642076269707,79.2793,150.98,150.88,26.4296]
[1642076269906,80.92929521,150.98,150.88,26.4296]
[1642076272012,79.2793,150.98,150.88,26.4296]
[1642076273149,79.2793,150.98,150.88,35.3753]
[1642076275051,80.92929521,150.98,150.88,26.4296]
[1642076276853,90.42929521,150.98,150.88,26.4296]
[1642076277755,0.07,150.96,150.87,23.6283]
[1642076277954,9.9424,150.93,150.87,23.6283]
[1642076278158,2.65,150.92,150.87,23.6283]
[1642076278556,2.9,150.92,150.87,23.6283]
[1642076278756,2.9,150.92,150.86,72.396]
[1642076278956,0.25,150.92,150.86,72.396]
[1642076279457,27.2396,150.95,150.86,72.396]
[1642076279860,2.65,150.95,150.86,81.3426]
[1642076280159,74.743,150.97,150.86,92.42202735]
[1642076280364,74.743,150.97,150.86,92.16202735]
[1642076280563,74.743,150.97,150.86,91.0926]
[1642076280960,74.743,150.97,150.86,97.3526]
[1642076281358,74.993,150.97,150.86,97.0926]
[1642076281558,74.993,150.97,150.87,2.65]
[1642076281760,74.993,150.97,150.91,8.9441]
[1642076281958,0.25,150.97,150.87,26.6499]
[1642076282159,0.25,150.97,150.87,55.1625565]
[1642076282361,27.6262,150.98,150.87,55.1625565]
[1642076282760,27.6262,150.98,150.87,25.3491565]
[1642076283161,27.6262,150.98,150.89,8.9453]
[1642076285460,37.5652,150.98,150.89,8.9453]
[1642076286262,37.5652,150.98,150.89,7.9453]
[1642076288368,27.6262,150.98,150.89,7.9453]
[1642076290166,37.5653,150.98,150.89,7.9453]
[1642076292475,37.5653,150.98,150.89,13.9453]
[1642076292674,37.5653,150.98,150.89,7.9453]
[1642076295279,2.65,150.98,150.89,7.9453]
[1642076295677,25.3218,151.01,150.89,7.9453]
[1642076295978,2.649,151.02,150.9,23.8151]
[1642076296177,24.659,151.01,150.93,8.9431]
[1642076296578,2.649,151.0,150.93,8.9431]
[1642076296777,24.659,151.01,150.93,8.9431]
[1642076297578,2.649,151.03,150.93,8.9431]
[1642076297778,2.649,151.03,150.96,8.9414]
[1642076297979,0.25,151.03,150.96,8.9414]
[1642076298378,122.8558,151.04,150.93,2.649]
[1642076298612,122.8558,151.04,150.94,24.8535]
[1642076298908,122.8558,151.04,150.94,33.7961]
[1642076299308,122.8558,151.04,150.94,24.8535]
[1642076299808,189.2958,151.04,150.94,24.8535]
[1642076300612,189.2958,151.04,150.92,2.649]
[1642076300810,189.2958,151.04,150.92,25.6519]
[1642076301812,189.2958,151.04,150.92,23.0029]
[1642076302214,189.2958,151.04,150.92,31.9466]
[1642076302914,190.94579521,151.04,150.92,23.0029]
[1642076303117,190.94579521,151.04,150.9,2.649]
[1642076303315,190.94579521,151.04,150.87,2.649]
[1642076303517,24.0406,151.03,150.86,2.649]
[1642076303816,9.9406,150.96,150.87,24.5113]
[1642076304016,10.1906,150.96,150.87,24.5113]
[1642076304417,10.2606,150.96,150.87,24.5113]
[1642076305316,2.65,150.95,150.87,33.4581]
[1642076305516,12.8408,150.95,150.87,24.5113]
[1642076305718,22.0908,150.95,150.87,24.5113]
[1642076305916,19.4408,150.95,150.87,24.5113]
[1642076307118,2.65,150.94,150.87,24.5113]
[1642076307518,9.9431,150.92,150.87,24.5113]
[1642076307720,9.9431,150.92,150.85,77.7267]
[1642076307919,10.1931,150.92,150.85,77.7267]
[1642076314924,10.1931,150.92,150.84,25.8264]
[1642076315126,10.1931,150.92,150.84,23.1764]
[1642076317226,10.1931,150.92,150.84,25.8264]
[1642076319731,66.37,150.91,150.84,2.65]
[1642076320030,9.9443,150.9,150.84,2.65]
[1642076320433,10.1943,150.9,150.84,2.65]
[1642076321233,10.1943,150.9,150.83,2.65]
[1642076322535,0.25,150.9,150.83,11.5991]
[1642076322831,0.25,150.9,150.83,17.5991]
[1642076323033,10.1936,150.91,150.83,17.5991]
[1642076323234,10.1936,150.91,150.83,14.9491]
[1642076323434,10.1936,150.91,150.83,8.9491]
[1642076324234,0.25,150.91,150.83,8.9491]
[1642076324636,25.4825,150.92,150.83,14.9491]
[1642076326055,2.65,150.92,150.83,14.9491]
[1642076326258,2.65,150.96,150.85,31.28085123]
[1642076326458,2.65,150.96,150.89,8.945]
[1642076326654,24.3776,150.98,150.89,8.945]
[1642076326855,2.65,150.97,150.89,14.945]
[1642076327456,2.9,150.97,150.89,14.945]
[1642076330460,2.9,150.97,150.89,8.945]
[1642076330859,69.27,150.97,150.89,8.945]
[1642076331061,9.5,150.96,150.86,80.9613]
[1642076331261,2.65,150.95,150.86,78.3113]
[1642076331459,9.5,150.94,150.86,78.3113]
[1642076331660,2.65,150.93,150.86,78.3113]
[1642076331861,2.9,150.94,150.86,78.3113]
[1642076332061,9.9416,150.93,150.86,78.3113]
[1642076332264,9.9416,150.93,150.86,80.9613]
[1642076332461,10.1916,150.93,150.86,80.9613]
[1642076333062,10.1916,150.93,150.86,78.3113]
[1642076335264,10.1916,150.93,150.86,87.2586]
[1642076337062,0.25,150.93,150.86,93.2586]
[1642076337268,0.25,150.93,150.86,93.5186]
[1642076337463,2.9,150.95,150.86,93.5186]
[1642076338264,12.8403,150.95,150.86,93.5186]
[1642076338864,2.9,150.95,150.86,93.5186]
[1642076341570,12.8401,150.95,150.86,93.2586]
[1642076341769,22.3401,150.95,150.86,93.2586]
[1642076342270,22.4101,150.95,150.86,14.9473]
[1642076342473,0.07,150.93,150.83,2.65]
[1642076342671,12.5924,150.92,150.82,25.40973596]
[1642076342868,36.4697,150.92,150.82,28.75973596]
[1642076343070,26.7773,150.92,150.82,58.58363596]
[1642076343471,26.7773,150.92,150.84,8.9482]
[1642076343672,0.25,150.92,150.84,8.9482]
[1642076343871,0.25,150.92,150.85,26.9365]
[1642076344071,50.5105,150.95,150.85,62.755]
[1642076344870,26.2022,150.95,150.85,62.755]
[1642076345274,26.2022,150.95,150.88,8.9456]
[1642076345473,26.2022,150.95,150.88,39.61330852]
[1642076345874,2.9,150.95,150.88,39.61330852]
[1642076346075,2.9,150.95,150.88,33.61330852]
[1642076346276,2.65,150.95,150.88,39.61330852]
[1642076346774,2.65,150.95,150.88,33.61330852]
[1642076346975,2.65,150.95,150.88,39.61330852]
[1642076347174,2.65,150.95,150.88,8.9456]
[1642076347585,2.9,150.95,150.88,8.9456]
[1642076348275,12.84,150.95,150.88,8.9456]
[1642076351877,2.9,150.95,150.88,8.9456]
[1642076353177,2.9,150.95,150.88,14.9456]
[1642076354481,0.25,150.95,150.88,14.9456]
[1642076354882,82.2363,150.96,150.88,14.9456]
[1642076357485,81.9863,150.96,150.88,14.9456]
[1642076358985,82.2363,150.96,150.88,14.9456]
[1642076359991,81.9863,150.96,150.88,14.9456]
[1642076360393,79.3363,150.96,150.88,14.9456]
[1642076361396,79.5863,150.96,150.88,14.9456]
[1642076361898,22.0891,150.97,150.88,14.9456]
[1642076362097,2.65,150.97,150.89,23.1767]
[1642076362296,26.34691131,151.01,150.93,8.9428]
[1642076362297,2.65,151.01,150.93,8.9428]
[1642076362498,123.9549602,151.02,150.94,2.649]
[1642076362699,126.6039602,151.02,150.94,2.649]
[1642076362899,126.6039602,151.02,150.94,8.649]
[1642076363300,126.8539602,151.02,150.95,8.9419]
[1642076363602,123.2625,151.02,150.93,2.649]
[1642076363801,123.2625,151.02,150.92,8.649]
[1642076364501,133.1982,151.02,150.92,8.649]
[1642076364702,1.71999521,151.01,150.92,2.649]
[1642076364909,66.37,150.99,150.92,2.649]
[1642076365201,9.57,150.98,150.92,2.649]
[1642076365402,13.86899521,150.98,150.92,2.649]
[1642076365603,9.9398,150.97,150.92,2.649]
[1642076366004,10.1898,150.97,150.92,2.649]
[1642076366919,2.649,150.96,150.92,2.649]
[1642076367120,0.25,150.96,150.92,2.649]
[1642076367818,0.25,150.96,150.89,2.65]
[1642076368218,24.4607,150.97,150.89,2.65]
[1642076368421,0.25,150.97,150.91,8.9443]
[1642076369519,0.25,150.98,150.91,8.9443]
[1642076369919,26.3545,150.99,150.91,8.9443]
[1642076370718,26.3545,150.99,150.91,14.9443]
[1642076371120,23.7045,150.99,150.92,2.649]
[1642076371326,23.7045,150.99,150.94,8.9424]
[1642076371921,0.25,150.99,150.94,8.9424]
[1642076372122,30.07667074,151.01,150.94,8.9424]
[1642076374336,27.17767074,151.01,150.94,8.9424]
[1642076374536,1.84226994,151.01,150.94,35.1567]
[1642076375335,1.84226994,151.01,150.94,41.1567]
[1642076376036,0.25,151.01,150.94,41.1567]
[1642076376440,2.09226994,151.03,150.94,41.1567]
[1642076376638,2.649,151.02,150.94,38.5077]
[1642076377037,2.899,151.02,150.94,38.5077]
[1642076377236,0.25,151.02,150.94,41.1567]
[1642076377937,23.9758,151.03,150.94,41.1567]
[1642076380039,23.9758,151.03,150.94,41.4067]
[1642076382841,0.25,151.03,150.94,41.4067]
[1642076383042,13.99126994,151.05,150.94,41.4067]
[1642076383043,37.66646994,151.05,150.94,41.4067]
[1642076383443,47.60016994,151.05,150.94,41.4067]
[1642076383843,47.60016994,151.05,150.94,41.1567]
[1642076384048,113.97016994,151.05,150.94,41.1567]
[1642076387446,47.60016994,151.05,150.94,41.1567]
[1642076388649,11.77656994,151.04,150.94,41.1567]
[1642076388854,26.4645,151.03,150.94,41.1567]
[1642076389054,26.7145,151.03,150.94,35.1567]
[1642076389455,26.7145,151.03,150.94,32.5077]
[1642076389654,26.7145,151.03,150.94,23.5653]
[1642076389853,46.1499,151.03,150.94,23.5653]
[1642076391255,47.99216994,151.03,150.94,23.5653]
[1642076391455,114.36216994,151.03,150.94,23.5653]
[1642076392992,1.84226994,151.02,150.94,26.2143]
[1642076393194,9.9371,151.0,150.94,26.2143]
[1642076393589,10.1871,151.0,150.94,26.2143]
[1642076394589,10.1871,151.0,150.94,23.5653]
[1642076395892,0.25,151.0,150.94,31.5143]
[1642076396092,10.1862,151.01,150.94,31.5143]
[1642076396793,10.1862,151.01,150.94,23.5653]
[1642076397394,2.649,151.0,150.94,23.5653]
[1642076397597,12.8361,151.0,150.94,23.5653]
[1642076398394,4.74126994,151.0,150.9,2.649]
[1642076398596,2.09226994,151.0,150.91,23.3719]
[1642076398996,4.74126994,151.0,150.91,29.3719]
[1642076399397,24.0465,150.99,150.91,29.3719]
[1642076399599,24.0465,150.99,150.94,7.949]
[1642076400799,24.2965,150.99,150.94,7.949]
[1642076405302,0.25,150.99,150.94,7.949]
[1642076405506,0.25,151.0,150.94,7.949]
[1642076405904,2.09226994,151.01,150.94,7.949]
[1642076406307,25.16506994,151.01,150.94,7.949]
[1642076406705,2.09226994,151.01,150.94,7.949]
[1642076406905,2.09226994,151.01,150.94,32.5601]
[1642076407506,0.25,151.01,150.94,38.5601]
[1642076407706,0.25,151.01,150.94,35.2091]
[1642076407907,2.09226994,151.02,150.94,35.2091]
[1642076408406,2.09226994,151.02,150.94,41.2091]
[1642076408806,2.09226994,151.02,150.94,41.4591]
[1642076409008,1.84226994,151.02,150.94,107.8291]
[1642076409410,1.84226994,151.03,150.94,107.8291]
[1642076409608,1.84226994,151.03,150.95,9.5]
[1642076409811,1.84226994,151.03,150.99,31.54257549]
[1642076410008,1.84226994,151.03,151.0,2.648]
[1642076410208,1.84226994,151.06,151.0,2.648]
[1642076410808,2.09226994,151.06,151.01,7.9439]
[1642076411343,0.25,151.06,151.01,7.9439]
[1642076412043,28.17796994,151.08,151.01,7.9439]
[1642076413244,25.52996994,151.08,151.01,13.9439]
[1642076414143,25.52996994,151.08,151.01,7.9439]
[1642076414344,1.84226994,151.08,151.01,10.5919]
[1642076414543,25.07846994,151.09,151.01,10.5919]
[1642076414743,25.07846994,151.09,151.01,7.9439]
[1642076415544,25.07846994,151.09,151.02,30.96536429]
[1642076415545,1.84226994,151.09,151.02,30.96536429]
[1642076415745,1.84226994,151.09,151.05,7.9425]
[1642076415949,1.84226994,151.09,151.05,8.2025]
[1642076416148,79.02389521,151.15,151.05,8.2025]
[1642076416149,1.84226994,151.1,151.05,8.2025]
[1642076416347,1.84226994,151.1,151.06,2.646]
[1642076416549,1.84226994,151.1,151.05,26.7296]
[1642076416747,1.84226994,151.1,151.05,26.4696]
[1642076417046,1.84226994,151.1,151.08,7.9409]
[1642076417448,1.84226994,151.14,151.09,3.03219997]
[1642076418247,1.84226994,151.14,151.09,10.97289997]
[1642076418651,4.48826994,151.15,151.09,10.97289997]
[1642076418848,4.73826994,151.15,151.09,10.97289997]
[1642076419650,2.896,151.15,151.09,10.97289997]
[1642076420050,1.84226994,151.16,151.09,10.97289997]
[1642076420252,1.84226994,151.16,151.09,16.97289997]
[1642076420651,29.07286994,151.17,151.09,16.97289997]
[1642076420951,29.07286994,151.17,151.09,17.23289997]
[1642076421350,29.07286994,151.17,151.09,17.48289997]
[1642076421952,24.8346,151.17,151.09,17.48289997]
[1642076422410,0.25,151.17,151.09,17.48289997]
[1642076422854,1.2842306,151.18,151.09,17.48289997]
[1642076423052,1.2842306,151.18,151.09,20.12889997]
[1642076423655,1.2842306,151.18,151.09,86.49889997]
[1642076424253,1.0342306,151.18,151.09,86.49889997]
[1642076424655,1.0342306,151.18,151.1,24.0353]
[1642076424856,1.0342306,151.18,151.14,7.9369]
[1642076425057,1.0342306,151.18,151.14,8.1969]
[1642076425458,1.0342306,151.18,151.14,14.1969]
[1642076426161,1.0342306,151.18,151.14,45.26676441]
[1642076429760,1.0342306,151.18,151.14,14.1969]
[1642076432864,1.0342306,151.18,151.14,14.4469]
[1642076433265,1.0342306,151.18,151.14,17.0929]
[1642076436576,1.0342306,151.18,151.14,16.8429]
[1642076436973,1.0342306,151.18,151.14,41.256]
[1642076438211,1.0342306,151.18,151.14,35.256]
[1642076438409,1.2842306,151.18,151.14,35.256]
[1642076439010,1.2842306,151.18,151.14,32.35]
[1642076439812,1.2842306,151.18,151.14,7.9369]
[1642076440614,1.0342306,151.18,151.14,19.1679]